fUST/lending_fUST_20251002
["ID","MTS","AMOUNT","RATE_DAILY","PERIOD"]
[388758809,1759349470264,-500.0,0.00022739,2]
[388758810,1759349470273,-500.0,0.00022739,2]
[388758811,1759349470282,-500.0,0.00022739,2]
[388758812,1759349470291,-764.98,0.00022739,2]
[388758813,1759349470300,-583.93194886,0.00022739,2]
[388758814,1759349470309,-525.61,0.00022739,2]
[388758815,1759349470319,-500.0,0.00022739,2]
[388758816,1759349470328,-330.08,0.00022739,2]
[388758817,1759349470337,-1549.08,0.00022739,2]
[388758818,1759349470346,-983.42,0.00022739,2]
[388758819,1759349470356,-176.59029908,0.00022739,2]
[388758820,1759349470365,-500.0,0.00022739,2]
[388758821,1759349470376,-350.91,0.00022739,2]
[388758822,1759349470386,-151.0,0.00022739,7]
[388758823,1759349470397,-212.509526,0.00022739,7]
[388758824,1759349470407,-151.0,0.00022739,7]
[388758825,1759349470416,-1141.6,0.00022739,2]
[388758826,1759349470425,-528.75,0.00022739,2]
[388758827,1759349470434,-151.0,0.00022739,7]
[388758828,1759349470443,-500.0,0.00022739,2]
[388758829,1759349470452,-3901.58,0.00022739,2]
[388758830,1759349470463,-799.4,0.00022739,2]
[388758831,1759349470472,-151.0,0.00022739,7]
[388758832,1759349470481,-956.64,0.00022739,2]
[388758833,1759349470490,-500.0,0.00022739,2]
[388758834,1759349470499,-5454.05,0.00022739,2]
[388758835,1759349470508,-523.38,0.00022739,2]
[388758836,1759349470518,-500.0,0.00022739,2]
[388758837,1759349470527,-500.0,0.00022739,2]
[388758838,1759349470536,-620.04,0.00022739,2]
[388758839,1759349470546,-529.92,0.00022739,2]
[388758840,1759349470555,-893.64,0.00022739,2]
[388758841,1759349470564,-500.0,0.00022739,2]
[388758842,1759349470573,-500.0,0.00022739,2]
[388758843,1759349470582,-523.64,0.00022739,2]
[388758844,1759349470591,-500.0,0.00022739,2]
[388758845,1759349470600,-500.0,0.00022739,2]
[388758846,1759349470611,-1738.76,0.00022739,2]
[388758847,1759349470620,-1224.23,0.00022739,2]
[388758848,1759349470630,-500.0,0.00022739,2]
[388758849,1759349470639,-500.0,0.00022739,2]
[388758850,1759349470649,-648.84,0.00022739,2]
[388758851,1759349470659,-500.0,0.00022739,2]
[388758852,1759349470668,-460.0,0.00022739,2]
[388758853,1759349470677,-500.0,0.00022739,2]
[388758854,1759349470687,-671.6,0.00022739,2]
[388758855,1759349470696,-2216.26,0.00022739,2]
[388758856,1759349470706,-847.38,0.00022739,2]
[388758857,1759349470717,-500.0,0.00022739,2]
[388758858,1759349470730,-580.17,0.00022739,2]
[388758859,1759349470740,-501.13,0.00022739,2]
[388758860,1759349470750,-669.61,0.00022739,2]
[388758861,1759349470760,-604.98,0.00022739,2]
[388758862,1759349470769,-529.86,0.00022739,2]
[388758863,1759349470779,-500.0,0.00022739,2]
[388758864,1759349470789,-779.18,0.00022739,2]
[388758865,1759349470800,-1045.3,0.00022739,2]
[388758866,1759349470808,-500.0,0.00022739,2]
[388758867,1759349470818,-500.0,0.00022739,2]
[388758868,1759349470827,-500.0,0.00022739,2]
[388758869,1759349470839,-500.0,0.00022739,2]
[388758870,1759349470849,-500.0,0.00022739,2]
[388758871,1759349470858,-1097.5,0.00022739,2]
[388758872,1759349470867,-758.92,0.00022739,2]
[388758873,1759349470876,-956.95,0.00022739,2]
[388758874,1759349470887,-2130.73,0.00022739,2]
[388758875,1759349470896,-1279.97,0.00022739,2]
[388758876,1759349470905,-913.19,0.00022739,2]
[388758877,1759349470914,-2174.11,0.00022739,2]
[388758878,1759349470923,-370.417,0.0002276,2]
[388758879,1759349470932,-660.0,0.00022766,2]
[388758880,1759349470942,-2351.0,0.0002278,2]
[388758881,1759349470952,-150.0,0.00022783,2]
[388758882,1759349470961,-1440.1932157,0.00022884,2]
[388758883,1759349470971,-150.0,0.00022884,2]
[388758884,1759349470980,-189.473,0.00022884,2]
[388758885,1759349470990,-900.0,0.00022884,2]
[388758886,1759349470999,-792.13072555,0.00022901,2]
[388758887,1759349471008,-500.0,0.00022917,2]
[388758888,1759349471018,-700.0,0.00022918,2]
[388758889,1759349471027,-2000.0,0.00022919,2]
[388758890,1759349471036,-1435.33123807,0.00023011,2]
[388758891,1759349471046,-734.36,0.00023013,2]
[388758892,1759349471056,-350.96226736,0.00023013,2]
[388758893,1759349471065,-1403.84906943,0.00023013,2]
[388758894,1759349471074,-3158.66040622,0.00023013,2]
[388758895,1759349471084,-5609.78088144,0.00023013,2]
[388758896,1759349471093,-500.0,0.00023013,2]
[388758897,1759349471102,-355.68035547,0.00023013,2]
[388758898,1759349471112,-1422.72142186,0.00023013,2]
[388758899,1759349471121,-3201.12319919,0.00023013,2]
[388758900,1759349471130,-5690.88568744,0.00023013,2]
[388758901,1759349471140,-2676.04370706,0.00023013,2]
[388758902,1759349472553,-0.02232505,0.00019168,3]
[388758903,1759349472782,5000.0,0.00018986,2]
[388758904,1759349472831,-490.72767495,0.00019168,3]
[388758905,1759349472841,-695.34,0.00019178,2]
[388758906,1759349472850,-500.0,0.00019178,2]
[388758907,1759349472860,-265.79775983,0.00019452,2]
[388758908,1759349473188,5000.0,0.00019078,2]
[388758909,1759349473236,0.01,0.00018989,2]
[388758910,1759349473258,499.99,0.00018989,2]
[388758911,1759349473448,1021.83880471,0.00018988,2]
[388758912,1759349473484,500.0,0.00018989,2]
[388758913,1759349473510,500.0,0.00018989,2]
[388758914,1759349473541,414.26008442,0.00018989,2]
[388758915,1759349473567,500.0,0.00018989,2]
[388758916,1759349473595,500.0,0.00018989,2]
[388758917,1759349473623,389.62332483,0.00018989,2]
[388758918,1759349473655,500.0,0.00018989,2]
[388758919,1759349473711,500.0,0.00018989,2]
[388758920,1759349473741,500.0,0.00018989,2]
[388758921,1759349473769,500.0,0.00018989,2]
[388758922,1759349473832,300.0,0.00019077,2]
[388758923,1759349473922,500.0,0.00018989,2]
[388758924,1759349473951,500.0,0.00018989,2]
[388758925,1759349473978,500.0,0.00018989,2]
[388758926,1759349474004,500.0,0.00018989,2]
[388758927,1759349474032,500.0,0.00018989,2]
[388758928,1759349474060,500.0,0.00018989,2]
[388758929,1759349474166,374.29778604,0.00018989,2]
[388758930,1759349474188,125.70221396,0.00018989,2]
[388758931,1759349474214,500.0,0.00018989,2]
[388758932,1759349474242,500.0,0.00018989,2]
[388758933,1759349474269,300.0,0.00018989,2]
[388758934,1759349474296,250.0,0.00018989,2]
[388758935,1759349474419,8324.30778604,0.0001889,2]
[388758936,1759349474442,10000.01,0.0001889,2]
[388758937,1759349474464,10000.01,0.0001889,2]
[388758938,1759349474488,10000.01,0.0001889,2]
[388758939,1759349474511,10000.01,0.0001889,2]
[388758940,1759349474533,10000.01,0.0001889,2]
[388758941,1759349474558,10000.01,0.0001889,2]
[388758942,1759349474581,10000.01,0.0001889,2]
[388758943,1759349486505,-6804.64701437,0.0001889,2]
[388758944,1759349486614,-10000.01,0.0001889,2]
[388758945,1759349486728,-10000.01,0.0001889,2]
[388758946,1759349487649,-5000.0,0.00018701,2]
[388758947,1759349487687,-0.01,0.0001889,2]
[388758948,1759349487818,-10000.01,0.0001889,2]
[388758949,1759349487913,-10000.01,0.0001889,2]
[388758950,1759349488049,-10000.01,0.0001889,2]
[388758951,1759349488162,-10000.01,0.0001889,2]
[388758952,1759349488283,-10000.01,0.0001889,2]
[388758953,1759349488426,-10000.01,0.0001889,2]
[388758954,1759349489671,-10000.01,0.0001889,2]
[388758955,1759349489789,-10000.01,0.0001889,2]
[388758956,1759349489899,-10000.01,0.0001889,2]
[388758957,1759349490060,-10000.01,0.0001889,2]
[388758958,1759349493801,-10000.01,0.0001889,2]
[388758959,1759349494250,-10000.01,0.0001889,2]
[388758960,1759349494366,-10000.01,0.0001889,2]
[388758961,1759349494489,-10000.01,0.0001889,2]
[388758962,1759349494615,-10000.01,0.0001889,2]
[388758963,1759349494801,-10000.01,0.0001889,2]
[388758964,1759349495800,-5000.0,0.00018701,2]
[388758965,1759349495838,-0.01,0.0001889,2]
[388758966,1759349495890,-10000.01,0.0001889,2]
[388758967,1759349496040,-10000.01,0.0001889,2]
[388758968,1759349498628,805.009098,0.00018098,2]
[388758969,1759349499723,-1977.95279307,0.0001889,2]
[388758970,1759349502783,524.7284619,0.00018098,2]
[388758971,1759349503374,5000.0,0.0001889,2]
[388758972,1759349511236,519.37595196,0.0001889,2]
[388758973,1759349511258,4480.62404804,0.0001889,2]
[388758974,1759349519288,5000.0,0.0001889,2]
[388758975,1759349521132,-500.0,0.00018989,2]
[388758976,1759349521161,-500.0,0.00018989,2]
[388758977,1759349521190,-500.0,0.00018989,2]
[388758978,1759349521220,-500.0,0.00018989,2]
[388758979,1759349521250,-261.98615562,0.00018989,2]
[388758980,1759349521279,-500.0,0.00018989,2]
[388758981,1759349521308,-500.0,0.00018989,2]
[388758982,1759349521339,-161.33903495,0.00018989,2]
[388758983,1759349521369,-429.5387948,0.00018989,2]
[388758984,1759349521399,-493.52154283,0.00018989,2]
[388758985,1759349521426,-292.91812652,0.00018989,2]
[388758986,1759349521456,-221.40269056,0.00018989,2]
[388758987,1759349521574,-278.59730944,0.00018989,2]
[388758988,1759349521601,-200.0,0.00018989,2]
[388758989,1759349521630,-500.0,0.00018989,2]
[388758990,1759349521657,-190.90573778,0.00018989,2]
[388758991,1759349521685,-500.0,0.00018989,2]
[388758992,1759349521712,-500.0,0.00018989,2]
[388758993,1759349521743,-500.0,0.00018989,2]
[388758994,1759349521770,-500.0,0.00018989,2]
[388758995,1759349521799,-500.0,0.00018989,2]
[388758996,1759349521919,-500.0,0.00018989,2]
[388758997,1759349521949,-500.0,0.00018989,2]
[388758998,1759349521977,-198.63690009,0.00018989,2]
[388758999,1759349522130,-263.73010538,0.00018989,2]
[388759000,1759349522158,-500.0,0.00018989,2]
[388759001,1759349527247,5000.0,0.00018989,2]
[388759002,1759349530223,182.60814923,0.00018989,2]
[388759003,1759349532376,500.0,0.00018989,2]
[388759004,1759349532402,380.26078816,0.00018989,2]
[388759005,1759349532428,500.0,0.00018989,2]
[388759006,1759349532455,266.93257226,0.00018989,2]
[388759007,1759349532481,500.0,0.00018989,2]
[388759008,1759349532512,500.0,0.00018989,2]
[388759009,1759349532539,501.43235754,0.00018989,2]
[388759010,1759349532564,141.31592205,0.00018989,2]
[388759011,1759349532585,358.68407795,0.00018989,2]
[388759012,1759349532612,500.0,0.00018989,2]
[388759013,1759349532644,500.0,0.00018989,2]
[388759014,1759349532670,537.52310557,0.00018989,2]
[388759015,1759349535810,5000.0,0.00018989,2]
[388759016,1759349540597,500.0,0.00018989,2]
[388759017,1759349540653,158.55782789,0.00018989,2]
[388759018,1759349541617,3527.44464887,0.000189,2]
[388759019,1759349544193,814.00752324,0.00018989,2]
[388759020,1759349544217,4185.99247676,0.00018989,2]
[388759021,1759349546390,500.0,0.00018989,2]
[388759022,1759349546446,285.63444057,0.00018989,2]
[388759023,1759349546532,500.0,0.00018989,2]
[388759024,1759349552263,4528.38308267,0.00018989,2]
[388759025,1759349552287,471.61691733,0.00018989,2]
[388759026,1759349553521,153.0,9.2e-07,2]
[388759027,1759349554556,153.0,9.2e-07,2]
[388759028,1759349555592,153.0,9.2e-07,2]
[388759029,1759349556618,153.0,9.2e-07,2]
[388759030,1759349557644,153.0,9.2e-07,2]
[388759031,1759349558452,383.24632886,0.00018989,2]
[388759032,1759349558720,153.0,9.2e-07,2]
[388759033,1759349560090,5000.0,0.00018989,2]
[388759034,1759349568128,3227.14675381,0.00018989,2]
[388759035,1759349568149,1772.85324619,0.00018989,2]
[388759036,1759349571187,295.14431944,0.00018989,2]
[388759037,1759349576588,5000.0,0.00018989,2]
[388759038,1759349584499,2932.01243437,0.00018989,2]
[388759039,1759349584522,2067.98756563,0.00018989,2]
[388759040,1759349593422,5000.0,0.00018989,2]
[388759041,1759349601117,204.8013467,0.000189,2]
[388759042,1759349601501,2727.22108767,0.00018989,2]
[388759043,1759349601524,1972.76880205,0.00018989,2]
[388759044,1759349609869,5000.0,0.00018989,2]
[388759045,1759349611408,150.0,0.000187,2]
[388759046,1759349617923,2877.24119795,0.00018989,2]
[388759047,1759349617946,2122.75880205,0.00018989,2]
[388759048,1759349622450,157.83828369,0.00018977,2]
[388759049,1759349622813,-500.0,0.00019,2]
[388759050,1759349622841,-159.42,0.00019,2]
[388759051,1759349633026,5000.0,0.00019,2]
[388759052,1759349634052,159.24056731,0.00018978,2]
[388759053,1759349640761,3521.92943269,0.00019,2]
[388759054,1759349640785,1478.07056731,0.00019,2]
[388759055,1759349647912,350.96226736,0.00018853,2]
[388759056,1759349656001,5000.0,0.00019,2]
[388759057,1759349663847,3170.97716533,0.00019,2]
[388759058,1759349663873,1829.02283467,0.00019,2]
[388759059,1759349664116,-159.24056727,0.00019003,2]
[388759060,1759349665273,1670.7749559,0.00018127,2]
[388759061,1759349670833,8010.75390956,0.00018246,2]
[388759062,1759349670856,10000.01,0.00018246,2]
[388759063,1759349670877,9843.72965754,0.00018246,2]
[388759064,1759349676988,156.28034246,0.00018246,2]
[388759065,1759349677010,4884.37804984,0.00018246,2]
[388759066,1759349679061,5000.0,0.00019003,2]
[388759067,1759349687979,115.63195016,0.00019003,2]
[388759068,1759349688001,4884.36804984,0.00019003,2]
[388759069,1759349703448,5000.0,0.00019003,2]
[388759070,1759349711280,5000.0,0.00019003,2]
[388759071,1759349726549,0.01,0.00019003,2]
[388759072,1759349726572,4999.99,0.00019003,2]
[388759073,1759349733237,159.24056727,0.00018903,2]
[388759074,1759349733533,159.24056727,0.0001894,2]
[388759075,1759349733832,159.24056727,0.00018977,2]
[388759076,1759349734429,4522.29829819,0.00019003,2]
[388759077,1759349734452,477.70170181,0.00019003,2]
[388759078,1759349734874,-151.0,0.00019003,2]
[388759079,1759349734905,-152.39952855,0.00019003,2]
[388759080,1759349749761,5000.0,0.00019003,2]
[388759081,1759349757768,4393.2109429,0.00019003,2]
[388759082,1759349757792,606.7890571,0.00019003,2]
[388759083,1759349762365,500.0,0.00027397,120]
[388759084,1759349773579,5000.0,0.00019003,2]
[388759090,1759349781619,4393.2209429,0.00019003,2]
[388759091,1759349781651,606.7790571,0.00019003,2]
[388759092,1759349795089,445.17821266,0.00018991,2]
[388759093,1759349797393,5000.0,0.00019003,2]
[388759094,1759349805287,3948.05273024,0.00019003,2]
[388759095,1759349805309,1051.94726976,0.00019003,2]
[388759096,1759349820362,5000.0,0.00019003,2]
[388759097,1759349828431,3948.06273024,0.00019003,2]
[388759098,1759349828456,1051.93726976,0.00019003,2]
[388759099,1759349843552,5000.0,0.00019003,2]
[388759100,1759349849146,2157.15770672,0.00018977,2]
[388759101,1759349851769,1790.91502352,0.00019003,2]
[388759102,1759349851791,3209.08497648,0.00019003,2]
[388759103,1759349866825,5000.0,0.00019003,2]
[388759105,1759349874742,1790.92502352,0.00019003,2]
[388759106,1759349874765,3209.07497648,0.00019003,2]
[388759107,1759349889853,5000.0,0.00019003,2]
[388759108,1759349897697,1790.93502352,0.00019003,2]
[388759109,1759349897720,3209.06497648,0.00019003,2]
[388759110,1759349899964,808.1104182,0.00018222,2]
[388759111,1759349911843,2000.0,0.0001898,2]
[388759112,1759349912382,172.815,0.0001898,2]
[388759113,1759349912827,3810.01960532,0.00019003,2]
[388759114,1759349912849,1189.98039468,0.00019003,2]
[388759115,1759349914609,305.09305718,0.00019,2]
[388759116,1759349920621,5000.0,0.00019003,2]
[388759117,1759349932748,-720.0,0.00021517,20]
[388759118,1759349935802,3504.93654814,0.00019003,2]
[388759119,1759349935824,1495.06345186,0.00019003,2]
[388759120,1759349943567,4303.88632896,0.00019003,2]
[388759121,1759349958954,4201.06021918,0.00019003,2]
[388759122,1759349958978,798.93978082,0.00019003,2]
[388759123,1759349960911,-300.0,0.00019074,2]
[388759124,1759349975021,-720.0,0.00021401,20]
[388759125,1759349977984,666.0,0.00018077,2]
[388759126,1759349980700,1432.88663839,0.00018308,2]
[388759127,1759349981173,1432.88663839,0.00018526,2]
[388759128,1759349981362,5000.0,0.00019074,2]
[388759129,1759349981487,868.23672322,0.00018744,2]
[388759130,1759349981509,564.64991517,0.00018744,2]
[388759131,1759349981790,1432.88663839,0.00018968,2]
[388759132,1759349996373,167.76,0.00019068,3]
[388759133,1759350001303,300.0,0.00019074,2]
[388759134,1759350002008,300.0,0.00019074,2]
[388759135,1759350002151,300.0,0.00019074,2]
[388759136,1759350002181,300.0,0.00019074,2]
[388759137,1759350003119,300.0,0.00019074,2]
[388759138,1759350004723,1200.0,0.00019074,2]
[388759139,1759350004870,5000.0,0.00019074,2]
[388759140,1759350007125,134.71344644,0.00019068,3]
[388759141,1759350007148,27.00655356,0.00019068,3]
[388759142,1759350018120,170.03299837,0.00019067,2]
[388759143,1759350018202,485.2,0.00019068,3]
[388759145,1759350027239,5000.0,0.00019074,2]
[388759146,1759350028678,-720.0,0.00021401,20]
[388759147,1759350034673,2119.02938078,0.00018977,2]
[388759148,1759350049732,2198.74106729,0.00019074,2]
[388759149,1759350049755,2801.25893271,0.00019074,2]
[388759150,1759350060007,-720.0,0.00021401,20]
[388759151,1759350062377,300.0,0.00019074,2]
[388759155,1759350067006,6898.75106729,0.00018077,2]
[388759156,1759350067033,215.91942071,0.00018077,2]
[388759157,1759350071447,500.0,0.00027397,120]
[388759158,1759350072210,5000.0,0.00019074,2]
[388759159,1759350094257,-720.0,0.00021401,20]
[388759160,1759350094510,4784.09057929,0.00019074,2]
[388759161,1759350094534,215.90942071,0.00019074,2]
[388759162,1759350102780,443.87114444,0.00019063,2]
[388759163,1759350116850,5000.0,0.00019074,2]
[388759164,1759350120747,-720.0,0.00021401,20]
[388759165,1759350122932,300.0,0.00019074,2]
[388759166,1759350139247,4040.22943485,0.00019074,2]
[388759167,1759350139272,959.77056515,0.00019074,2]
[388759168,1759350140647,1200.0,0.00019074,2]
[388759169,1759350147625,1000.0,0.00018101,2]
[388759170,1759350151775,385.48681971,0.00019074,2]
[388759171,1759350151803,280.2420257,0.00019074,2]
[388759172,1759350152018,817.87,0.00019068,3]
[388759173,1759350153983,500.0,0.00019074,2]
[388759174,1759350154010,250.0,0.00019074,2]
[388759175,1759350154040,500.0,0.00019074,2]
[388759176,1759350154068,500.0,0.00019074,2]
[388759177,1759350154096,155.90516162,0.00019074,2]
[388759178,1759350154123,500.0,0.00019074,2]
[388759179,1759350154150,500.0,0.00019074,2]
[388759180,1759350154177,500.0,0.00019074,2]
[388759181,1759350154205,356.45065523,0.00019074,2]
[388759182,1759350154232,468.81187739,0.00019074,2]
[388759183,1759350154260,500.0,0.00019074,2]
[388759184,1759350154288,282.17354449,0.00019074,2]
[388759185,1759350154315,500.0,0.00019074,2]
[388759186,1759350154344,500.0,0.00019074,2]
[388759187,1759350154376,500.0,0.00019074,2]
[388759188,1759350154405,300.57100585,0.00019074,2]
[388759189,1759350154435,500.0,0.00019074,2]
[388759190,1759350154463,202.49891001,0.00019074,2]
[388759191,1759350154485,297.50108999,0.00019074,2]
[388759192,1759350154517,500.0,0.00019074,2]
[388759193,1759350154546,500.0,0.00019074,2]
[388759194,1759350154577,500.0,0.00019074,2]
[388759195,1759350154605,500.0,0.00019074,2]
[388759196,1759350154633,500.0,0.00019074,2]
[388759197,1759350154665,500.0,0.00019074,2]
[388759198,1759350154692,500.0,0.00019074,2]
[388759199,1759350154719,500.0,0.00019074,2]
[388759200,1759350154759,500.0,0.00019074,2]
[388759201,1759350154787,500.0,0.00019074,2]
[388759202,1759350154815,500.0,0.00019074,2]
[388759203,1759350154843,500.0,0.00019074,2]
[388759204,1759350154870,342.24145933,0.00019074,2]
[388759205,1759350154898,500.0,0.00019074,2]
[388759206,1759350154938,500.0,0.00019074,2]
[388759207,1759350154966,500.0,0.00019074,2]
[388759208,1759350154996,500.0,0.00019074,2]
[388759209,1759350155031,500.0,0.00019074,2]
[388759210,1759350155058,500.0,0.00019074,2]
[388759211,1759350155084,360.26745068,0.00019074,2]
[388759212,1759350155107,139.73254932,0.00019074,2]
[388759213,1759350155138,500.0,0.00019074,2]
[388759214,1759350155170,500.0,0.00019074,2]
[388759215,1759350155203,500.0,0.00019074,2]
[388759216,1759350155232,500.0,0.00019074,2]
[388759217,1759350155261,500.0,0.00019074,2]
[388759218,1759350155288,500.0,0.00019074,2]
[388759219,1759350155339,500.0,0.00019074,2]
[388759220,1759350155374,500.0,0.00019074,2]
[388759221,1759350155403,500.0,0.00019074,2]
[388759222,1759350155440,500.0,0.00019074,2]
[388759223,1759350155468,500.0,0.00019074,2]
[388759224,1759350161470,5000.0,0.00019074,2]
[388759225,1759350162828,408.94,0.00019068,3]
[388759226,1759350173567,204.47,0.00019068,3]
[388759228,1759350183730,4386.6,0.00019074,2]
[388759229,1759350183753,613.4,0.00019074,2]
[388759230,1759350184249,613.42,0.00019068,3]
[388759231,1759350206317,5000.0,0.00019074,2]
[388759232,1759350207847,-300.0,0.00019074,2]
[388759233,1759350228770,1967.08750653,0.00018978,2]
[388759234,1759350229335,5000.0,0.00019074,2]
[388759235,1759350242430,300.0,0.00019074,2]
[388759236,1759350244359,199.40374989,0.00018875,2]
[388759237,1759350251634,1933.51874358,0.00019074,2]
[388759238,1759350251659,3066.48125642,0.00019074,2]
[388759239,1759350274192,5000.0,0.00019074,2]
[388759240,1759350291373,165.04515383,0.00018977,2]
[388759242,1759350296375,165.04515382,0.00019001,2]
[388759243,1759350296543,1603.43843593,0.00019074,2]
[388759244,1759350296567,3396.56156407,0.00019074,2]
[388759250,1759350301364,165.04515382,0.00019025,2]
[388759251,1759350306386,165.04515382,0.00019049,2]
[388759252,1759350310217,6273.35812829,0.00018152,2]
[388759253,1759350310240,10000.01,0.00018152,2]
[388759254,1759350310263,821.57581501,0.00018152,2]
[388759255,1759350311378,165.04515382,0.00019073,2]
[388759256,1759350319405,5000.0,0.00019074,2]
[388759257,1759350319791,-300.0,0.00019076,2]
[388759258,1759350319820,-300.0,0.00019076,2]
[388759259,1759350319850,-300.0,0.00019076,2]
[388759260,1759350319878,-300.0,0.00019076,2]
[388759261,1759350319914,-300.0,0.00019076,2]
[388759262,1759350319945,-1200.0,0.00019076,2]
[388759263,1759350322937,184.38979694,0.00019073,2]
[388759264,1759350342819,4415.62020306,0.00019076,2]
[388759265,1759350342844,584.37979694,0.00019076,2]
[388759266,1759350362558,300.0,0.00019076,2]
[388759267,1759350365756,5000.0,0.00019076,2]
[388759268,1759350381077,500.0,0.00027397,120]
[388759269,1759350389169,4115.63020306,0.00019076,2]
[388759270,1759350389191,884.36979694,0.00019076,2]
[388759272,1759350412059,5000.0,0.00019076,2]
[388759273,1759350420568,809.73,0.00019068,3]
[388759274,1759350422441,300.0,0.00019076,2]
[388759275,1759350422900,1721.20156817,0.00019073,2]
[388759279,1759350434768,1284.70863489,0.00019076,2]
[388759280,1759350434792,3715.29136511,0.00019076,2]
[388759281,1759350440658,1200.0,0.00019076,2]
[388759282,1759350440982,872.82513,0.00018177,2]
[388759283,1759350457111,4211.89350489,0.00019076,2]
[388759284,1759350457138,788.10649511,0.00019076,2]
[388759286,1759350467160,9211.90350489,0.00018,2]
[388759287,1759350467184,1187.99389078,0.00018,2]
[388759289,1759350480434,5000.0,0.00019076,2]
[388759290,1759350482372,300.0,0.00019076,2]
[388759291,1759350486969,1433.29407168,0.00018296,2]
[388759292,1759350487568,1433.29407168,0.00018405,2]
[388759293,1759350487644,645.42796586,0.00018802,2]
[388759294,1759350487667,787.86610582,0.00018802,2]
[388759295,1759350487973,1433.29407168,0.00019074,2]
[388759297,1759350498485,1005.11074094,0.00015,2]
[388759298,1759350500615,2107.83720362,0.000176,2]
[388759299,1759350503244,4665.90187794,0.00019076,2]
[388759300,1759350503270,334.09812206,0.00019076,2]
[388759301,1759350509718,9665.91187794,0.00017,2]
[388759302,1759350509740,7197.69084048,0.00017,2]
[388759303,1759350512105,1213.61885165,0.00015,2]
[388759305,1759350519457,1588.70030787,0.0001,2]
[388759306,1759350519483,929.59107571,0.0001,2]
[388759307,1759350519659,192.48,0.00019076,2]
[388759310,1759350521212,1812.84304291,0.0001,2]
[388759312,1759350525510,5000.0,0.00019076,2]
[388759313,1759350533864,260.11375767,0.00019076,2]
[388759314,1759350542569,300.0,0.00019076,2]
[388759315,1759350549565,1504.98212371,0.00019076,2]
[388759316,1759350549588,3495.01787629,0.00019076,2]
[388759317,1759350572037,5000.0,0.00019076,2]
[388759318,1759350595166,5000.0,0.00019076,2]
[388759319,1759350595757,0.01,0.00019068,3]
[388759320,1759350595783,586.91,0.00019068,3]
[388759322,1759350610044,293.46,0.00019068,3]
[388759323,1759350613137,1579.80377064,0.00019073,2]
[388759324,1759350617356,5000.0,0.00019076,2]
[388759325,1759350620833,880.38,0.00019068,3]
[388759365,1759350632647,-300.0,0.00019076,2]
[388759366,1759350632656,-300.0,0.00019076,2]
[388759368,1759350632665,-300.0,0.00019076,2]
[388759370,1759350632674,-300.0,0.00019076,2]
[388759371,1759350632683,-300.0,0.00019076,2]
[388759372,1759350632692,-1200.0,0.00019076,2]
[388759373,1759350632701,-269.8407738,0.00019077,2]
[388759374,1759350632711,-196.16941799,0.00019077,2]
[388759375,1759350632720,-500.0,0.00019077,2]
[388759376,1759350632729,-500.0,0.00019077,2]
[388759377,1759350632738,-500.0,0.00019077,2]
[388759378,1759350632748,-384.22414593,0.00019077,2]